bitfinex/quotes_SOLUSD_20251019
["timestamp","ask_amount","ask_price","bid_price","bid_amount"]
[1760881386833,0.68,190.63,190.54,5.24818267]
[1760881387046,22.88,190.61,190.48,0.66]
[1760881387350,0.68,190.62,190.49,0.52496194]
[1760881387518,5.24631446,190.61,190.5,5.90934383]
[1760881387718,0.68,190.61,190.51,28.34490682]
[1760881387930,0.68,190.61,190.52,0.66]
[1760881388136,0.68,190.61,190.53,0.52485172]
[1760881388544,0.68,190.61,190.54,0.66]
[1760881388729,0.68,190.61,190.55,0.52479664]
[1760881389224,5.24605992,190.62,190.55,1.18479664]
[1760881389740,5.24605992,190.62,190.55,5.90775057]
[1760881390142,5.24605992,190.62,190.56,0.5247691]
[1760881390316,0.69,190.61,190.52,0.66]
[1760881390731,0.69,190.61,190.49,1.18496194]
[1760881391042,22.88,190.59,190.49,27.16]
[1760881391244,23.57,190.58,190.47,1.18501706]
[1760881391543,23.57,190.58,190.45,0.66]
[1760881391846,18.36595475,190.57,190.45,5.91053532]
[1760881392022,0.69,190.56,190.45,5.91053532]
[1760881392338,18.36595475,190.57,190.44,0.52509976]
[1760881392339,22.88,190.54,190.44,0.52509976]
[1760881392541,22.88,190.54,190.43,0.52512734]
[1760881392753,0.69,190.53,190.43,1.18512734]
[1760881392939,0.69,190.52,190.43,1.18512734]
[1760881393151,0.69,190.51,190.43,1.18512734]
[1760881393321,0.69,190.51,190.44,5.25077758]
[1760881393520,0.69,190.5,190.44,5.25077758]
[1760881395223,5.93949387,190.5,190.44,5.25077758]
[1760881395428,0.69,190.5,190.44,5.25077758]
[1760881395628,28.12902064,190.52,190.45,0.66]
[1760881395835,28.83902064,190.52,190.45,0.66]
[1760881396456,41.96100258,190.52,190.42,6.43660821]
[1760881396625,0.71,190.51,190.42,6.43660821]
[1760881396955,0.71,190.5,190.41,0.5251825]
[1760881397256,0.71,190.58,190.45,10.87647521]
[1760881397437,19.52631446,190.61,190.47,10.87647521]
[1760881397438,5.95631446,190.61,190.47,10.87647521]
[1760881397641,22.88,190.58,190.48,1.1849895]
[1760881397830,23.59,190.58,190.49,0.66]
[1760881398026,23.59,190.58,190.5,0.52493438]
[1760881398232,23.59,190.58,190.51,0.66]
[1760881398942,5.24741564,190.57,190.49,5.24946335]
[1760881399147,0.71,190.56,190.49,5.77442529]
[1760881399647,0.71,190.56,190.5,0.66]
[1760881400653,5.95774221,190.56,190.5,5.90933035]
[1760881401561,0.71,190.61,190.51,1.18490682]
[1760881401730,0.71,190.61,190.52,0.66]
[1760881401930,0.71,190.61,190.53,0.52485172]
[1760881402242,0.71,190.61,190.52,0.66]
[1760881402635,5.24658971,190.6,190.52,5.90867739]
[1760881402841,0.71,190.59,190.52,5.90867739]
[1760881403947,5.95700685,190.59,190.52,5.90867739]
[1760881405050,5.24700685,190.59,190.52,0.66]
[1760881405243,0.71,190.58,190.5,1.18493438]
[1760881405755,0.71,190.57,190.5,1.18493438]
[1760881406248,5.95741937,190.57,190.5,6.43407496]
[1760881406755,5.95741937,190.57,190.46,0.66]
[1760881406756,0.71,190.56,190.46,0.66]
[1760881407049,22.88,190.54,190.46,0.66]
[1760881407247,0.71,190.53,190.46,0.66]
[1760881407747,22.88,190.56,190.46,0.66]
[1760881407949,0.71,190.54,190.46,0.66]
[1760881408149,5.24851729,190.53,190.46,0.66]
[1760881408326,5.24851729,190.53,190.46,5.91043292]
[1760881408751,5.95851729,190.53,190.46,0.66]
[1760881409049,5.95851729,190.53,190.46,5.91029561]
[1760881409943,0.71,190.56,190.47,0.66]
[1760881410245,22.88,190.57,190.47,1.18501706]
[1760881410429,23.59,190.57,190.48,0.66]
[1760881411048,5.2471403,190.58,190.49,0.52496194]
[1760881411250,5.2471403,190.58,190.5,0.66]
[1760881411594,0.71,190.57,190.5,0.66]
[1760881412170,5.95744019,190.57,190.51,5.24906829]
[1760881412771,5.95744019,190.57,190.51,5.90906829]
[1760881413230,0.71,190.56,190.5,5.24934383]
[1760881413833,5.95791048,190.56,190.49,5.90960924]
[1760881414258,5.24791048,190.56,190.49,5.24960924]
[1760881414556,0.71,190.55,190.49,5.90960924]
[1760881415562,0.71,190.54,190.46,0.66]
[1760881415957,0.71,190.54,190.47,0.52501706]
[1760881416455,0.71,190.54,190.47,6.43515737]
[1760881416869,5.95825679,190.54,190.47,6.43515737]
[1760881418470,5.95825679,190.54,190.47,5.91014031]
[1760881418764,5.95870402,190.53,190.47,0.66]
[1760881418971,5.95870402,190.53,190.46,67.17547062]
[1760881419270,0.71,190.52,190.46,66.650426]
[1760881420185,0.71,190.51,190.46,66.650426]
[1760881420463,0.71,190.51,190.46,67.310426]
[1760881420772,0.71,190.51,190.47,0.66]
[1760881421374,5.95913295,190.51,190.46,61.4]
[1760881421667,0.71,190.5,190.46,61.4]
[1760881421862,0.71,190.5,190.45,5.25068074]
[1760881422063,5.24913295,190.51,190.46,0.66]
[1760881422257,5.95913295,190.51,190.46,0.66]
[1760881422660,5.24878193,190.53,190.47,0.66]
[1760881424160,5.95878193,190.53,190.47,0.66]
[1760881425881,5.95878193,190.53,190.47,5.91007303]
[1760881426376,5.24878193,190.53,190.48,0.7]
[1760881426594,5.24821316,190.55,190.47,5.77509009]
[1760881426753,0.71,190.54,190.47,6.47509009]
[1760881426951,0.71,190.54,190.47,5.77509009]
[1760881427267,0.71,190.54,190.48,0.7]
[1760881427565,5.95840011,190.54,190.48,5.94988559]
[1760881427765,0.71,190.53,190.48,5.24988559]
[1760881427976,0.71,190.52,190.46,0.52504462]
[1760881428163,5.95840011,190.54,190.47,0.7]
[1760881429275,5.95840011,190.54,190.47,5.95014557]
[1760881429477,0.71,190.53,190.47,5.95014557]
[1760881430365,18.3670425,190.56,190.48,0.7]
[1760881430571,0.71,190.53,190.48,0.7]
[1760881431281,0.71,190.52,190.47,5.25014557]
[1760881431475,5.95894329,190.52,190.46,0.52504462]
[1760881431784,5.95894329,190.52,190.45,89.12]
[1760881432167,5.95894329,190.52,190.46,5.95044071]
[1760881432685,0.71,190.51,190.45,61.4]
[1760881432885,5.24894329,190.52,190.44,5.77585999]
[1760881433064,0.71,190.5,190.44,5.77585999]
[1760881433687,0.71,190.5,190.45,0.7]
[1760881433866,0.71,190.5,190.46,0.7]
[1760881434066,0.71,190.5,190.44,28.65585999]
[1760881434266,0.71,190.5,190.44,29.35585999]
[1760881435197,0.71,190.52,190.45,0.7]
[1760881435372,0.71,190.54,190.45,0.7]
[1760881435567,0.71,190.53,190.45,0.7]
[1760881436171,5.24879277,190.52,190.46,5.25044628]
[1760881436480,5.24879277,190.52,190.46,5.95044628]
[1760881437489,5.24879277,190.52,190.45,5.25072197]
[1760881437671,5.24845096,190.54,190.47,0.7]
[1760881438690,5.95845096,190.54,190.47,0.7]
[1760881439184,19.07905555,190.54,190.45,62.1]
[1760881439488,22.88,190.51,190.39,0.7]
[1760881439789,22.88,190.49,190.39,0.7]
[1760881439997,0.71,190.48,190.39,0.7]
[1760881440883,5.25017063,190.47,190.39,5.9522673]
[1760881441086,5.95953623,190.5,190.4,1.22521008]
[1760881441292,5.95953623,190.5,190.41,0.7]
[1760881441619,5.95953623,190.5,190.42,0.52515492]
[1760881441777,5.95953623,190.5,190.42,1.22515492]
[1760881442087,0.71,190.49,190.42,0.7]
[1760881442290,0.71,190.49,190.4,1.22521008]
[1760881442497,0.71,190.48,190.4,1.22521008]
[1760881442671,0.71,190.47,190.4,0.52521008]
[1760881442862,0.71,190.47,190.42,5.2515492]
[1760881443063,0.71,190.5,190.43,0.7]
[1760881443380,0.71,190.5,190.41,5.95180461]
[1760881443565,0.71,190.49,190.41,5.95180461]
[1760881444093,0.71,190.49,190.35,98.54266643]
[1760881444094,0.71,190.48,190.38,0.7]
[1760881444386,0.71,190.48,190.39,32.2523767]
[1760881444594,0.71,190.47,190.39,32.2523767]
[1760881444791,0.71,190.46,190.39,32.2523767]
[1760881444993,5.96062462,190.46,190.39,32.9523767]
[1760881445870,0.71,190.45,190.36,0.7]
[1760881446075,0.71,190.45,190.35,5.25348043]
[1760881446376,10.87647521,190.49,190.36,1.22532044]
[1760881446377,0.71,190.47,190.36,1.22532044]
[1760881446579,0.71,190.47,190.37,0.7]
[1760881446774,0.71,190.47,190.38,27.52526525]
[1760881446986,5.25044628,190.46,190.39,5.95214858]
[1760881447186,5.25044628,190.46,190.4,0.7]
[1760881447398,0.71,190.45,190.37,5.95266641]
[1760881447597,0.71,190.44,190.34,5.25375643]
[1760881447776,18.37656199,190.46,190.35,27.7]
[1760881447777,0.71,190.43,190.35,27.7]
[1760881448690,5.2515492,190.42,190.35,27.7]
[1760881448883,0.71,190.41,190.34,27.0]
[1760881449275,22.88,190.39,190.34,27.0]
[1760881449590,22.88,190.39,190.34,27.7]
[1760881449784,23.59,190.39,190.34,27.7]
[1760881450484,23.59,190.39,190.35,0.71]
[1760881450680,22.88,190.39,190.34,27.0]
[1760881450893,22.88,190.39,190.35,0.71]
[1760881451099,28.13240268,190.39,190.35,0.71]
[1760881451395,28.79240268,190.39,190.34,27.0]
[1760881451607,28.79240268,190.39,190.35,0.71]
[1760881451974,28.79240268,190.39,190.34,27.0]
[1760881452176,28.79240268,190.39,190.34,27.71]
[1760881452984,0.66,190.38,190.34,27.0]
[1760881453187,0.66,190.38,190.34,27.71]
[1760881453383,0.66,190.37,190.31,0.71]
[1760881453793,0.66,190.37,190.3,0.67]
[1760881454883,5.91318907,190.37,190.29,5.25487123]
[1760881455187,0.71,190.36,190.29,5.25487123]
[1760881455399,5.25280022,190.38,190.3,0.67]
[1760881455784,0.71,190.37,190.3,0.67]
[1760881456087,5.25280022,190.38,190.3,0.67]
[1760881456618,5.96280022,190.38,190.3,5.92459479]
[1760881456809,5.96280022,190.38,190.31,0.67]
[1760881458509,5.96280022,190.38,190.31,5.92457962]
[1760881458803,22.88,190.39,190.32,0.67]
[1760881458984,23.59,190.39,190.32,0.67]
[1760881459501,0.71,190.39,190.32,1.19543085]
[1760881459699,0.71,190.39,190.33,0.67]
[1760881459700,5.96238278,190.39,190.33,0.67]
[1760881459900,5.96238278,190.39,190.31,5.92457962]
[1760881460102,0.71,190.38,190.31,5.92457962]
[1760881460305,0.71,190.37,190.31,5.25457962]
[1760881460497,0.71,190.36,190.3,5.25486074]
[1760881461003,22.88,190.38,190.29,32.90511597]
[1760881461004,0.71,190.35,190.29,32.90511597]
[1760881461211,0.71,190.37,190.3,0.67]
[1760881462214,5.25320445,190.36,190.3,5.92482959]
[1760881462590,0.71,190.35,190.3,5.92482959]
[1760881463007,0.71,190.35,190.31,0.67]
[1760881463423,5.2529285,190.37,190.3,5.25482959]
[1760881463599,0.71,190.36,190.3,0.67]
[1760881464122,0.71,190.36,190.29,26.98]
[1760881464294,0.71,190.35,190.28,0.67]
[1760881465326,5.96371417,190.35,190.28,5.92535646]
[1760881465507,0.71,190.34,190.28,5.92535646]
[1760881465902,0.71,190.33,190.28,5.92535646]
[1760881466114,0.71,190.33,190.29,0.67]
[1760881466302,5.96371417,190.35,190.29,0.67]
[1760881466816,0.71,190.38,190.3,0.52548607]
[1760881467114,23.59,190.38,190.31,0.67]
[1760881467620,5.2523767,190.39,190.31,0.67]
[1760881467809,5.2523767,190.39,190.32,0.52543085]
[1760881468117,5.2523767,190.39,190.33,0.67]
[1760881468324,5.9623767,190.39,190.33,0.67]
[1760881468820,5.9623767,190.39,190.33,5.92401424]
[1760881469399,0.71,190.39,190.33,5.25401424]
[1760881469601,0.71,190.39,190.34,0.67]
[1760881470003,0.71,190.38,190.3,5.92481576]
[1760881470215,0.71,190.37,190.31,0.67]
[1760881470409,5.96238328,190.39,190.31,0.67]
[1760881470608,28.84238328,190.39,190.31,0.67]
[1760881471120,13.12924397,190.42,190.32,5.77973938]
[1760881471312,19.09138752,190.41,190.33,0.67]
[1760881471506,19.09138752,190.41,190.32,5.25430853]
[1760881471507,22.88,190.39,190.3,0.67]
[1760881471715,22.88,190.39,190.31,0.67]
[1760881471904,0.71,190.38,190.31,0.67]
[1760881472219,23.59,190.38,190.29,5.25513689]
[1760881472402,0.71,190.37,190.3,0.67]
[1760881473222,5.96313186,190.37,190.3,5.92465741]
[1760881473826,0.71,190.36,190.29,0.67]
[1760881475120,5.96339621,190.36,190.29,5.92488812]
[1760881476208,5.25291519,190.38,190.3,0.67]
[1760881476520,5.25236254,190.4,190.3,0.67]
[1760881476722,0.71,190.41,190.31,0.52545846]
[1760881476920,5.96182787,190.41,190.3,0.67]
[1760881477516,0.71,190.43,190.31,0.52545846]
[1760881477833,0.71,190.43,190.32,0.67]
[1760881478124,0.71,190.43,190.33,0.52540324]
[1760881478423,0.71,190.43,190.34,18.38814751]
[1760881478612,5.96045046,190.46,190.35,1.19534804]
[1760881478813,0.71,190.46,190.36,0.67]
[1760881479014,0.71,190.46,190.37,0.52529285]
[1760881479329,5.25017072,190.47,190.38,26.98]
[1760881479532,0.71,190.48,190.39,1.19523767]
[1760881479729,0.71,190.51,190.4,0.67]
[1760881479918,0.71,190.53,190.41,23.4051825]
[1760881480228,0.71,190.53,190.42,0.67]
[1760881480421,0.71,190.53,190.43,18.90458435]
[1760881480611,5.24796641,190.55,190.44,27.65]
[1760881480813,0.71,190.54,190.45,1.19507219]
[1760881481025,0.71,190.54,190.46,0.67]
[1760881481928,5.95826543,190.54,190.47,5.25017063]
[1760881483142,5.95826543,190.54,190.47,0.67]
[1760881483914,22.88,190.51,190.44,5.94078303]
[1760881484224,0.66,190.5,190.44,5.94078303]
[1760881485237,5.90941513,190.5,190.44,5.94078303]
[1760881485938,0.66,190.49,190.42,32.90140259]
[1760881486140,0.66,190.49,190.42,5.94140259]
[1760881486526,0.66,190.48,190.42,5.94140259]
[1760881487241,0.66,190.47,190.4,32.90183859]
[1760881487740,0.66,190.47,190.4,5.94183859]
[1760881488039,0.66,190.46,190.38,5.94246296]
[1760881488333,0.66,190.45,190.38,5.94246296]
[1760881488713,18.37466316,190.48,190.38,5.94246296]
[1760881488929,5.25044628,190.46,190.38,5.94246296]
[1760881489121,0.66,190.45,190.38,5.94246296]
[1760881490530,0.66,190.45,190.39,0.69]
[1760881491119,5.91074368,190.45,190.39,5.94231775]
[1760881493140,5.91074368,190.45,190.4,0.69]
[1760881493320,5.91074368,190.45,190.41,0.69]
[1760881493835,0.66,190.45,190.37,0.52529285]
[1760881494037,5.91028953,190.47,190.41,0.69]
[1760881495045,5.91028953,190.47,190.41,5.94182289]
[1760881495360,5.91028953,190.47,190.41,0.69]
[1760881497228,5.91028953,190.47,190.41,5.94181113]
[1760881497537,0.66,190.46,190.39,5.94219174]
[1760881497733,0.66,190.45,190.39,5.94219174]
[1760881498736,5.25056304,190.46,190.4,0.69]
[1760881499443,5.25056304,190.46,190.4,5.94198103]
[1760881499959,5.91056304,190.46,190.4,5.94198103]
[1760881500660,226.19798955,190.54,190.4,5.25198103]
[1760881500834,0.66,190.49,190.41,0.69]
[1760881501435,0.66,190.49,190.4,61.4]
[1760881501678,0.66,190.48,190.41,0.69]
[1760881501841,13.12198194,190.52,190.41,1.2151825]
[1760881502031,0.66,190.49,190.42,0.69]
[1760881502438,5.24851729,190.53,190.42,0.69]
[1760881502636,5.24906829,190.51,190.43,5.25127343]
[1760881502869,5.24906829,190.51,190.44,0.69]
[1760881503243,0.66,190.5,190.44,0.69]
[1760881504171,0.66,190.5,190.44,5.94089421]
[1760881505181,0.66,190.5,190.45,0.69]
[1760881505346,0.66,190.5,190.46,0.69]
[1760881505541,33.75647521,190.56,190.46,0.69]
[1760881505759,0.66,190.54,190.47,0.69]
[1760881505972,5.90796641,190.55,190.47,0.69]
[1760881506147,0.66,190.54,190.47,0.69]
[1760881506356,5.24851729,190.53,190.47,5.94008028]
[1760881506844,5.24851729,190.53,190.48,0.69]
[1760881507047,5.24851729,190.53,190.49,0.69]
[1760881507458,5.90851729,190.53,190.49,0.69]
[1760881508469,5.90851729,190.53,190.47,0.69]
[1760881509343,5.90851729,190.53,190.47,5.9400999]
[1760881509546,5.90851729,190.53,190.47,5.2500999]
[1760881509744,5.90851729,190.53,190.48,0.69]
[1760881509982,0.66,190.53,190.49,0.69]
[1760881510179,0.66,190.52,190.44,0.69]
[1760881510473,0.66,190.52,190.42,5.9415492]
[1760881510779,0.66,190.51,190.42,5.9415492]
[1760881510965,0.69,190.5,190.42,5.9415492]
[1760881511165,0.69,190.49,190.42,5.9415492]
[1760881511378,5.24879277,190.52,190.43,5.91104981]
[1760881511552,0.69,190.51,190.43,5.91104981]
[1760881511754,0.69,190.51,190.44,0.66]
[1760881512167,5.24879277,190.52,190.44,0.66]
[1760881512377,0.69,190.51,190.44,0.66]
[1760881513257,5.93921239,190.51,190.45,5.25072197]
[1760881513449,5.93921239,190.51,190.46,0.66]
[1760881513648,5.93921239,190.51,190.47,0.66]
[1760881514152,5.93938699,190.5,190.45,5.25072197]
[1760881514359,5.93938699,190.5,190.45,5.92072197]
[1760881514864,5.2490958,190.51,190.46,0.67]
[1760881515072,5.2490958,190.51,190.47,0.67]
[1760881515456,5.2490958,190.51,190.45,5.25072197]
[1760881515659,5.9390958,190.51,190.45,5.25072197]
[1760881515847,5.93939163,190.5,190.45,5.25072197]
[1760881516243,5.93939163,190.5,190.45,5.92072197]
[1760881516861,0.69,190.49,190.45,5.92072197]
[1760881517258,0.69,190.51,190.45,5.92072197]
[1760881517872,0.69,190.51,190.45,0.67]
[1760881518573,0.69,190.51,190.44,5.25074255]
[1760881518774,41.24999868,190.53,190.44,5.92074255]
[1760881519075,22.88,190.5,190.41,0.67]
[1760881519375,5.2496194,190.49,190.41,5.92169632]
[1760881519555,0.69,190.48,190.41,5.92169632]
[1760881520077,5.2496194,190.49,190.38,0.67]
[1760881520078,0.69,190.47,190.38,0.67]
[1760881520450,0.69,190.47,190.38,5.92264986]
[1760881520647,5.9396194,190.49,190.39,1.19523767]
[1760881520865,22.88,190.52,190.4,0.67]
[1760881521048,0.69,190.54,190.41,0.5251825]
[1760881521246,22.88,190.52,190.42,0.67]
[1760881521464,28.81884987,190.52,190.43,5.77640077]
[1760881521671,28.81884987,190.52,190.44,0.67]
[1760881521873,5.93884987,190.52,190.45,0.52507219]
[1760881522262,5.93884987,190.52,190.46,0.67]
[1760881522455,5.93884987,190.52,190.44,0.67]
[1760881523374,5.93884987,190.52,190.45,5.25072197]
[1760881523563,5.24884987,190.52,190.45,5.25072197]
[1760881523759,0.69,190.51,190.44,0.67]
[1760881523962,0.69,190.51,190.43,5.2510006]
[1760881523963,22.88,190.5,190.43,5.2510006]
[1760881524166,0.69,190.49,190.43,5.9210006]
[1760881524665,0.69,190.51,190.43,5.2510006]
[1760881524872,0.69,190.51,190.44,0.67]
[1760881525765,5.24934383,190.5,190.44,5.9208045]
[1760881526073,0.69,190.49,190.42,5.92132907]
[1760881526559,5.24934383,190.5,190.42,5.92132907]
[1760881526759,0.69,190.49,190.42,5.92132907]
[1760881526963,0.69,190.48,190.4,5.25183185]
[1760881527183,0.69,190.47,190.41,0.67]
[1760881527582,0.69,190.49,190.41,1.1951825]
[1760881527784,5.93977826,190.49,190.43,5.25127343]
[1760881527964,0.69,190.48,190.42,5.92152933]
[1760881528280,0.69,190.47,190.4,5.92184286]
[1760881528450,18.37382676,190.49,190.37,13.13174647]
[1760881528451,23.57,190.46,190.37,0.67]
[1760881529466,22.88,190.46,190.38,0.52526525]
[1760881529767,0.69,190.48,190.39,0.67]
[1760881529961,5.94004459,190.48,190.4,5.25210084]
[1760881530168,0.69,190.47,190.4,5.25210084]
[1760881530476,0.69,190.47,190.4,5.92210084]
[1760881531282,5.94030328,190.47,190.4,5.92210084]
[1760881532880,0.69,190.46,190.4,5.92210084]
[1760881533270,0.69,190.45,190.34,0.67]
[1760881533466,0.69,190.45,190.35,0.67]
[1760881534369,5.25099768,190.44,190.36,5.25320445]
[1760881534573,0.69,190.43,190.36,5.25320445]
[1760881534792,0.69,190.42,190.36,5.25320445]
[1760881535578,5.2516595,190.42,190.36,5.25320445]
[1760881535773,0.69,190.41,190.36,5.25320445]
[1760881535969,5.2516595,190.42,190.36,0.67]
[1760881536172,0.69,190.41,190.35,5.25346042]
[1760881536382,0.69,190.41,190.33,5.92376339]
[1760881536589,0.69,190.4,190.33,5.92376339]
[1760881536884,0.69,190.41,190.34,0.67]
[1760881537385,0.69,190.41,190.33,5.25376339]
[1760881537575,5.94236495,190.4,190.33,5.25376339]
[1760881537979,5.25182658,190.41,190.34,0.67]
[1760881538289,5.94182658,190.41,190.34,0.67]
[1760881539679,5.94182658,190.41,190.34,5.92369698]
[1760881539875,0.69,190.4,190.34,5.92369698]
[1760881541177,0.69,190.42,190.35,0.67]
[1760881541374,5.94156138,190.42,190.35,0.67]
[1760881542992,5.94156138,190.42,190.36,5.25320445]
[1760881543295,28.13119774,190.44,190.37,0.67]
[1760881544392,28.13119774,190.44,190.38,5.25265258]
[1760881544588,28.13119774,190.44,190.38,5.93265258]
[1760881545086,0.66,190.43,190.36,5.25293626]
[1760881545402,0.66,190.42,190.36,5.25293626]
[1760881545693,0.66,190.41,190.36,5.25293626]
[1760881545884,0.66,190.4,190.36,5.25293626]
[1760881546194,0.66,190.39,190.32,0.68]
[1760881546374,0.66,190.39,190.33,5.25403246]
[1760881546885,0.66,190.39,190.33,5.93403246]
[1760881547789,0.66,190.39,190.34,0.68]
[1760881548086,0.66,190.39,190.35,0.68]
[1760881548695,5.2521783,190.4,190.33,0.68]
[1760881548887,0.66,190.39,190.33,0.68]
[1760881549076,0.66,190.39,190.34,5.25375643]
[1760881549283,0.66,190.39,190.34,5.93375643]
[1760881549488,5.2521783,190.4,190.34,5.93375643]
[1760881549489,0.66,190.38,190.34,5.93375643]
[1760881549799,0.66,190.38,190.32,5.93409749]
[1760881551896,0.66,190.37,190.29,5.93510488]
[1760881552112,22.88,190.35,190.29,5.93509394]
[1760881552418,23.54,190.35,190.29,5.93509394]
[1760881552720,22.88,190.35,190.3,0.68]
[1760881553079,28.79354815,190.35,190.3,0.68]
[1760881553285,0.66,190.34,190.27,5.25545145]
[1760881553584,0.66,190.33,190.27,5.93545145]
[1760881555600,28.79404416,190.33,190.27,5.93545145]
[1760881555914,23.54,190.33,190.27,5.93545145]
[1760881556095,28.79404484,190.33,190.27,5.93545145]
[1760881556796,0.66,190.32,190.26,0.2]
[1760881557495,5.25458462,190.31,190.26,0.2]
[1760881557709,0.66,190.3,190.26,0.88]
[1760881558186,22.88,190.31,190.26,5.45592026]
[1760881558389,28.79377551,190.34,190.27,0.68]
[1760881559512,22.88,190.32,190.27,0.68]
[1760881559682,22.88,190.32,190.28,5.25541307]
[1760881559878,22.88,190.32,190.29,0.68]
[1760881561004,23.54,190.37,190.3,0.68]
[1760881561307,28.79294251,190.37,190.28,94.21541307]
[1760881561503,0.66,190.36,190.28,94.21541307]
[1760881561804,22.88,190.34,190.29,0.68]
[1760881562214,23.54,190.34,190.29,0.68]
[1760881562387,23.54,190.34,190.3,0.68]
[1760881562701,22.88,190.34,190.28,0.68]
[1760881563025,28.79390076,190.34,190.28,0.68]
[1760881563185,28.79390076,190.34,190.28,5.93530901]
[1760881564409,0.66,190.33,190.26,0.72559655]
[1760881564599,0.66,190.33,190.26,0.2]
[1760881565202,0.66,190.33,190.26,6.13588678]
[1760881565719,28.13390076,190.34,190.27,0.68]
[1760881565917,22.88,190.32,190.27,1.20556892]
[1760881566090,22.88,190.32,190.28,0.68]
[1760881566407,23.54,190.31,190.26,6.13588678]
[1760881566714,28.79472222,190.31,190.26,0.88]
[1760881566910,0.66,190.3,190.26,0.88]
[1760881567089,28.13472222,190.31,190.26,0.2]
[1760881567296,0.66,190.3,190.26,0.2]
[1760881567803,0.66,190.29,190.26,0.2]
[1760881568200,28.13472222,190.31,190.26,0.2]
[1760881568201,0.66,190.28,190.26,0.2]
[1760881568605,5.91501568,190.3,190.26,0.2]
[1760881568805,0.66,190.29,190.26,0.2]
[1760881569217,0.66,190.28,190.26,0.2]
[1760881569808,23.54,190.27,190.26,0.2]
[1760881570195,22.88,190.27,190.26,0.2]
[1760881570408,0.66,190.29,190.26,0.2]
[1760881570610,22.88,190.27,190.26,0.2]
[1760881571311,23.54,190.27,190.26,0.2]
[1760881571496,22.88,190.27,190.26,0.2]
[1760881574816,5.96548622,190.28,190.26,0.2]
[1760881576121,0.71,190.27,190.26,0.2]
[1760881576798,5.96568928,190.27,190.26,0.2]
[1760881576993,16.84216449,190.27,190.26,0.2]
[1760881581019,16.84216449,190.27,190.26,1e-08]
[1760881581703,16.84216449,190.27,190.22,1e-08]
[1760881581704,33.75647521,190.23,190.22,1e-08]
[1760881582019,60.63647521,190.23,190.22,1e-08]
[1760881582224,22.88,190.23,190.22,1e-08]
[1760881582398,34.46647521,190.23,190.22,1e-08]
[1760881582724,22.88,190.23,190.22,1e-08]
[1760881582907,23.59,190.23,190.22,1e-08]
[1760881583605,34.46647521,190.23,190.22,1e-08]
[1760881585405,39.72326961,190.23,190.22,1e-08]
[1760881588321,22.88,190.15,190.1,0.9]
[1760881588504,22.88,190.14,190.1,0.9]
[1760881588826,22.88,190.14,190.11,0.7]
[1760881589606,5.25955924,190.13,190.11,0.7]
[1760881590021,5.25955924,190.13,190.1,0.2]
[1760881590225,22.88,190.11,190.1,0.2]
[1760881591624,28.14011256,190.11,190.1,0.2]
[1760881591927,39.72658777,190.11,190.1,0.2]
[1760881592812,39.01658777,190.11,190.1,0.2]
[1760881593532,5.25955924,190.13,190.1,0.9]
[1760881593708,22.88,190.12,190.1,0.9]
[1760881594030,22.88,190.12,190.1,0.2]
[1760881594900,5.25955924,190.13,190.1,0.9]
[1760881595121,22.88,190.11,190.1,0.9]
[1760881595422,22.88,190.11,190.1,0.2]
[1760881596429,28.14011256,190.11,190.1,0.2]